{"text_format":"3","workbook":"xlsx","n_sheets":5,"sheets":["Panoramica party","Elenco ospiti","Cibo e Bevande","Altri Elementi Essenziali","Griglia dispos. posti a sedere"],"not_rendered":{"defined_names":9},"read":"whole","date_system":"1900"}

{"sheet":"Panoramica party","index":0,"n_rows":21,"n_cols":8,"rows_kept":21,"merged":[[6,3,6,4],[6,5,6,6],[9,1,9,2]]}
[]
[]
[null,"Panoramica del party"]
[]
[]
[null,"EVENTO",null,"RIEPILOGO OSPITI",{"$nulls":3},{"$f":"\"RSVP IN SOSPESO: \"&RSVPInSospeso","v":"RSVP IN SOSPESO: 2"}]
[null,"75° compleanno della nonna",null,"PANORAMICA DELLE RISPOSTE",null,"COSTO PER OSPITE",null,"IMPORTO BUDGET"]
[{"$nulls":3},"Ospiti confermati","Totale confermati","Cibo","Altro","Totale"]
[null,"DATA",null,"Adulti",{"$f":"SUMIF(TavoloOspiti[PARTECIPA?],\"=Sì\",TavoloOspiti[ADULTI])","v":26},{"$f":"TavoloCibo[[#Totals],[COSTO PER ADULTO]]","v":{"v":12.690089084110037,"d":"€ 12.69"}},{"$f":"CostiEssenzialiPerOspite","v":{"v":18.695652173913043,"d":"€ 18.70"}},{"$f":"(RiepilogoPartecipanti[[#This Row],[Cibo]]+RiepilogoPartecipanti[[#This Row],[Altro]])*TotaleAdulti","v":{"v":816.0292727086002,"d":"€ 816.03"}}]
[null,"2011-06-14",null,"Bambini",{"$f":"SUMIF(TavoloOspiti[PARTECIPA?],\"=Sì\",TavoloOspiti[BAMBINI])","v":20},{"$f":"TavoloCibo[[#Totals],[COSTO PER BAMBINO]]","v":{"v":7.252884190656953,"d":"€ 7.25"}},{"$f":"CostiEssenzialiPerOspite","v":{"v":18.695652173913043,"d":"€ 18.70"}},{"$f":"(RiepilogoPartecipanti[[#This Row],[Cibo]]+RiepilogoPartecipanti[[#This Row],[Altro]])*TotaleBambini","v":{"v":518.9707272914,"d":"€ 518.97"}}]
[{"$nulls":3},"Totale",{"$f":"SUBTOTAL(109,RiepilogoPartecipanti[Totale confermati])","v":46},{"$f":"\"Media.  \"&TEXT(SUBTOTAL(101,RiepilogoPartecipanti[Cibo]),\"€ #,##0.00\")","v":"Media.  € 9,97149"},{"$f":"\"Media.  \"&TEXT(SUBTOTAL(101,RiepilogoPartecipanti[Altro]),\"€ #,##0.00\")","v":"Media.  € 18,69565"},{"$f":"SUBTOTAL(109,RiepilogoPartecipanti[Totale])","v":{"v":1335,"d":"€ 1,335.00"}}]
[null,"ORA"]
[null,"Dalle 14.00 alle 16.00"]
[]
[null,"LOCALITÀ",null,"RIEPILOGO BUDGET"]
[null,"Casa di zia Daniela",null,"ARTICOLO","NUMERO","IMPORTO BUDGET","COSTO TOTALE","DIFFERENZA"]
[{"$nulls":3},"Cibi e bevande",{"$f":"COUNTA(TavoloCibo[CIBI E BEVANDE - ARTICOLI])","v":18},{"v":500,"d":"€ 500.00"},{"$f":"TavoloCibo[[#Totals],[COSTO TOTALE]]","v":{"v":475,"d":"€ 475.00"}},{"$f":"PanoramicaBudget[[#This Row],[IMPORTO BUDGET]]-PanoramicaBudget[[#This Row],[COSTO TOTALE]]","v":{"v":25,"d":"€ 25.00"}}]
[{"$nulls":3},{"$f":"IntestazioneTavolo1","v":"Arredi e forniture"},{"$f":"COUNTA(BudgetTavolo1[Arredi e forniture])","v":7},{"v":400,"d":"€ 400.00"},{"$f":"BudgetTavolo1[[#Totals],[Costo]]","v":{"v":400,"d":"€ 400.00"}},{"$f":"PanoramicaBudget[[#This Row],[IMPORTO BUDGET]]-PanoramicaBudget[[#This Row],[COSTO TOTALE]]","v":{"v":0,"d":"€ 0.00"}}]
[{"$nulls":3},{"$f":"IntestazioneTavolo2","v":"Decorazioni"},{"$f":"COUNTA(BudgetTavolo2[Decorazioni])","v":4},{"v":150,"d":"€ 150.00"},{"$f":"BudgetTavolo2[[#Totals],[Costo]]","v":{"v":175,"d":"€ 175.00"}},{"$f":"PanoramicaBudget[[#This Row],[IMPORTO BUDGET]]-PanoramicaBudget[[#This Row],[COSTO TOTALE]]","v":{"v":-25,"d":"€ 25.00"}}]
[{"$nulls":3},{"$f":"IntestazioneTavolo3","v":"Altro"},{"$f":"COUNTA(BudgetTavolo3[Altro])","v":4},{"v":300,"d":"€ 300.00"},{"$f":"BudgetTavolo3[[#Totals],[Costo]]","v":{"v":285,"d":"€ 285.00"}},{"$f":"PanoramicaBudget[[#This Row],[IMPORTO BUDGET]]-PanoramicaBudget[[#This Row],[COSTO TOTALE]]","v":{"v":15,"d":"€ 15.00"}}]
[{"$nulls":3},"Totale",{"$f":"SUBTOTAL(109,PanoramicaBudget[NUMERO])","v":33},{"$f":"SUBTOTAL(109,PanoramicaBudget[IMPORTO BUDGET])","v":{"v":1350,"d":"€ 1,350.00"}},{"$f":"SUBTOTAL(109,PanoramicaBudget[COSTO TOTALE])","v":{"v":1335,"d":"€ 1,335.00"}},{"$f":"PanoramicaBudget[[#Totals],[IMPORTO BUDGET]]-PanoramicaBudget[[#Totals],[COSTO TOTALE]]","v":{"v":15,"d":"€ 15.00"}}]

{"sheet":"Elenco ospiti","index":1,"n_rows":22,"n_cols":12,"rows_kept":22}
[]
[]
[null,"Lista degli ospiti"]
[]
[]
[]
[null,"NOME","INDIRIZZO","CITTÀ","PROVINCIA","CAP","TELEFONO","POSTA ELETTRONICA","PARTECIPA?","BAMBINI","ADULTI","TOTALE"]
[null,"Famiglia 1","Indirizzo 1","Città 1","Provincia 1","CAP 1","Telefono 1","Posta elettronica1","No",2,2,{"$f":"SUM(TavoloOspiti[[#This Row],[BAMBINI]:[ADULTI]])","v":4}]
[null,"Famiglia 2","Indirizzo 2","Città 2","Provincia 2","CAP 2","Telefono 2","Posta elettronica2","Sì",1,1,{"$f":"SUM(TavoloOspiti[[#This Row],[BAMBINI]:[ADULTI]])","v":2}]
[null,"Famiglia 3","Indirizzo 3","Città 3","Provincia 3","CAP 3","Telefono 3","Posta elettronica3","Sì",3,3,{"$f":"SUM(TavoloOspiti[[#This Row],[BAMBINI]:[ADULTI]])","v":6}]
[null,"Famiglia 4","Indirizzo 4","Città 4","Provincia 4","CAP 4","Telefono 4","Posta elettronica4",null,null,2,{"$f":"SUM(TavoloOspiti[[#This Row],[BAMBINI]:[ADULTI]])","v":2}]
[null,"Famiglia 5","Indirizzo 5","Città 5","Provincia 5","CAP 5","Telefono 5","Posta elettronica5","Sì",4,3,{"$f":"SUM(TavoloOspiti[[#This Row],[BAMBINI]:[ADULTI]])","v":7}]
[null,"Famiglia 6","Indirizzo 6","Città 6","Provincia 6","CAP 6","Telefono 6","Posta elettronica6","Sì",2,2,{"$f":"SUM(TavoloOspiti[[#This Row],[BAMBINI]:[ADULTI]])","v":4}]
[null,"Famiglia 7","Indirizzo 7","Città 7","Provincia 7","CAP 7","Telefono 7","Posta elettronica7","Sì",1,4,{"$f":"SUM(TavoloOspiti[[#This Row],[BAMBINI]:[ADULTI]])","v":5}]
[null,"Famiglia 8","Indirizzo 8","Città 8","Provincia 8","CAP 8","Telefono 8","Posta elettronica8","No",5,3,{"$f":"SUM(TavoloOspiti[[#This Row],[BAMBINI]:[ADULTI]])","v":8}]
[null,"Famiglia 9","Indirizzo 9","Città 9","Provincia 9","CAP 9","Telefono 9","Posta elettronica9","Sì",3,2,{"$f":"SUM(TavoloOspiti[[#This Row],[BAMBINI]:[ADULTI]])","v":5}]
[null,"Famiglia 10","Indirizzo 10","Città 10","Provincia 10","CAP 10","Telefono 10","Posta elettronica10","Sì",null,4,{"$f":"SUM(TavoloOspiti[[#This Row],[BAMBINI]:[ADULTI]])","v":4}]
[null,"Famiglia 11","Indirizzo 11","Città 11","Provincia 11","CAP 11","Telefono 11","Posta elettronica11","Sì",3,5,{"$f":"SUM(TavoloOspiti[[#This Row],[BAMBINI]:[ADULTI]])","v":8}]
[null,"Famiglia 12","Indirizzo 12","Città 12","Provincia 12","CAP 12","Telefono 12","Posta elettronica12","No",2,3,{"$f":"SUM(TavoloOspiti[[#This Row],[BAMBINI]:[ADULTI]])","v":5}]
[null,"Famiglia 13","Indirizzo 13","Città 13","Provincia 13","CAP 13","Telefono 13","Posta elettronica13","Sì",3,2,{"$f":"SUM(TavoloOspiti[[#This Row],[BAMBINI]:[ADULTI]])","v":5}]
[null,"Famiglia 14","Indirizzo 14","Città 14","Provincia 14","CAP 14","Telefono 14","Posta elettronica14","No",null,1,{"$f":"SUM(TavoloOspiti[[#This Row],[BAMBINI]:[ADULTI]])","v":1}]
[null,"Famiglia 15","Indirizzo 15","Città 15","Provincia 15","CAP 15","Telefono 15","Posta elettronica15",null,null,2,{"$f":"SUM(TavoloOspiti[[#This Row],[BAMBINI]:[ADULTI]])","v":2}]

{"sheet":"Cibo e Bevande","index":2,"n_rows":25,"n_cols":10,"rows_kept":25}
[]
[]
[null,"Cibi e bevande"]
[]
[null,"Immettere il costo e le porzioni stimate per calcolare automaticamente i pezzi e il costo per porzione in base al totale dei partecipanti"]
[null,"CIBI E BEVANDE - ARTICOLI","COSTO TOTALE","PORZIONE PER BAMBINO","PORZIONE PER ADULTO","TOTALE PORZIONI","COSTO PER PORZIONE","COSTO PER BAMBINO","COSTO PER ADULTO","NOTA"]
[null,"Bibite",{"v":15,"d":"€ 15.00"},0.5,2,{"$f":"(TavoloCibo[[#This Row],[PORZIONE PER BAMBINO]]*TotaleBambini)+(TavoloCibo[[#This Row],[PORZIONE PER ADULTO]]*TotaleAdulti)","v":62},{"$f":"IFERROR(TavoloCibo[[#This Row],[COSTO TOTALE]]/TavoloCibo[[#This Row],[TOTALE PORZIONI]],\"\")","v":{"v":0.24193548387096775,"d":"€ 0.24"}},{"$f":"IFERROR(TavoloCibo[[#This Row],[COSTO PER PORZIONE]]*TavoloCibo[[#This Row],[PORZIONE PER BAMBINO]],\"\")","v":{"v":0.12096774193548387,"d":"€ 0.12"}},{"$f":"IFERROR(TavoloCibo[[#This Row],[COSTO PER PORZIONE]]*TavoloCibo[[#This Row],[PORZIONE PER ADULTO]],\"\")","v":{"v":0.4838709677419355,"d":"€ 0.48"}},"Bottiglie da 2 lt"]
[null,"Lattine di succo",{"v":15,"d":"€ 15.00"},2,0,{"$f":"(TavoloCibo[[#This Row],[PORZIONE PER BAMBINO]]*TotaleBambini)+(TavoloCibo[[#This Row],[PORZIONE PER ADULTO]]*TotaleAdulti)","v":40},{"$f":"IFERROR(TavoloCibo[[#This Row],[COSTO TOTALE]]/TavoloCibo[[#This Row],[TOTALE PORZIONI]],\"\")","v":{"v":0.375,"d":"€ 0.38"}},{"$f":"IFERROR(TavoloCibo[[#This Row],[COSTO PER PORZIONE]]*TavoloCibo[[#This Row],[PORZIONE PER BAMBINO]],\"\")","v":{"v":0.75,"d":"€ 0.75"}},{"$f":"IFERROR(TavoloCibo[[#This Row],[COSTO PER PORZIONE]]*TavoloCibo[[#This Row],[PORZIONE PER ADULTO]],\"\")","v":{"v":0,"d":"€ 0.00"}},"Mela e uva bianca"]
[null,"Vino",{"v":50,"d":"€ 50.00"},0,2,{"$f":"(TavoloCibo[[#This Row],[PORZIONE PER BAMBINO]]*TotaleBambini)+(TavoloCibo[[#This Row],[PORZIONE PER ADULTO]]*TotaleAdulti)","v":52},{"$f":"IFERROR(TavoloCibo[[#This Row],[COSTO TOTALE]]/TavoloCibo[[#This Row],[TOTALE PORZIONI]],\"\")","v":{"v":0.9615384615384616,"d":"€ 0.96"}},{"$f":"IFERROR(TavoloCibo[[#This Row],[COSTO PER PORZIONE]]*TavoloCibo[[#This Row],[PORZIONE PER BAMBINO]],\"\")","v":{"v":0,"d":"€ 0.00"}},{"$f":"IFERROR(TavoloCibo[[#This Row],[COSTO PER PORZIONE]]*TavoloCibo[[#This Row],[PORZIONE PER ADULTO]],\"\")","v":{"v":1.9230769230769231,"d":"€ 1.92"}}]
[null,"Torta",{"v":75,"d":"€ 75.00"},1,1,{"$f":"(TavoloCibo[[#This Row],[PORZIONE PER BAMBINO]]*TotaleBambini)+(TavoloCibo[[#This Row],[PORZIONE PER ADULTO]]*TotaleAdulti)","v":46},{"$f":"IFERROR(TavoloCibo[[#This Row],[COSTO TOTALE]]/TavoloCibo[[#This Row],[TOTALE PORZIONI]],\"\")","v":{"v":1.6304347826086956,"d":"€ 1.63"}},{"$f":"IFERROR(TavoloCibo[[#This Row],[COSTO PER PORZIONE]]*TavoloCibo[[#This Row],[PORZIONE PER BAMBINO]],\"\")","v":{"v":1.6304347826086956,"d":"€ 1.63"}},{"$f":"IFERROR(TavoloCibo[[#This Row],[COSTO PER PORZIONE]]*TavoloCibo[[#This Row],[PORZIONE PER ADULTO]],\"\")","v":{"v":1.6304347826086956,"d":"€ 1.63"}},"Ordinare dal fornaio locale"]
[null,"Gelato",{"v":20,"d":"€ 20.00"},1,1.5,{"$f":"(TavoloCibo[[#This Row],[PORZIONE PER BAMBINO]]*TotaleBambini)+(TavoloCibo[[#This Row],[PORZIONE PER ADULTO]]*TotaleAdulti)","v":59},{"$f":"IFERROR(TavoloCibo[[#This Row],[COSTO TOTALE]]/TavoloCibo[[#This Row],[TOTALE PORZIONI]],\"\")","v":{"v":0.3389830508474576,"d":"€ 0.34"}},{"$f":"IFERROR(TavoloCibo[[#This Row],[COSTO PER PORZIONE]]*TavoloCibo[[#This Row],[PORZIONE PER BAMBINO]],\"\")","v":{"v":0.3389830508474576,"d":"€ 0.34"}},{"$f":"IFERROR(TavoloCibo[[#This Row],[COSTO PER PORZIONE]]*TavoloCibo[[#This Row],[PORZIONE PER ADULTO]],\"\")","v":{"v":0.5084745762711864,"d":"€ 0.51"}}]
[null,"Budini",{"v":15,"d":"€ 15.00"},1,0,{"$f":"(TavoloCibo[[#This Row],[PORZIONE PER BAMBINO]]*TotaleBambini)+(TavoloCibo[[#This Row],[PORZIONE PER ADULTO]]*TotaleAdulti)","v":20},{"$f":"IFERROR(TavoloCibo[[#This Row],[COSTO TOTALE]]/TavoloCibo[[#This Row],[TOTALE PORZIONI]],\"\")","v":{"v":0.75,"d":"€ 0.75"}},{"$f":"IFERROR(TavoloCibo[[#This Row],[COSTO PER PORZIONE]]*TavoloCibo[[#This Row],[PORZIONE PER BAMBINO]],\"\")","v":{"v":0.75,"d":"€ 0.75"}},{"$f":"IFERROR(TavoloCibo[[#This Row],[COSTO PER PORZIONE]]*TavoloCibo[[#This Row],[PORZIONE PER ADULTO]],\"\")","v":{"v":0,"d":"€ 0.00"}},"Acquistare vasetti pronti: vaniglia e cioccolato"]
[null,"Funghi stufati",{"v":32,"d":"€ 32.00"},1,2,{"$f":"(TavoloCibo[[#This Row],[PORZIONE PER BAMBINO]]*TotaleBambini)+(TavoloCibo[[#This Row],[PORZIONE PER ADULTO]]*TotaleAdulti)","v":72},{"$f":"IFERROR(TavoloCibo[[#This Row],[COSTO TOTALE]]/TavoloCibo[[#This Row],[TOTALE PORZIONI]],\"\")","v":{"v":0.4444444444444444,"d":"€ 0.44"}},{"$f":"IFERROR(TavoloCibo[[#This Row],[COSTO PER PORZIONE]]*TavoloCibo[[#This Row],[PORZIONE PER BAMBINO]],\"\")","v":{"v":0.4444444444444444,"d":"€ 0.44"}},{"$f":"IFERROR(TavoloCibo[[#This Row],[COSTO PER PORZIONE]]*TavoloCibo[[#This Row],[PORZIONE PER ADULTO]],\"\")","v":{"v":0.8888888888888888,"d":"€ 0.89"}},"Funghetti stufati con crema di formaggio e salsiccia"]
[null,"Bruschetta",{"v":22,"d":"€ 22.00"},0,3,{"$f":"(TavoloCibo[[#This Row],[PORZIONE PER BAMBINO]]*TotaleBambini)+(TavoloCibo[[#This Row],[PORZIONE PER ADULTO]]*TotaleAdulti)","v":78},{"$f":"IFERROR(TavoloCibo[[#This Row],[COSTO TOTALE]]/TavoloCibo[[#This Row],[TOTALE PORZIONI]],\"\")","v":{"v":0.28205128205128205,"d":"€ 0.28"}},{"$f":"IFERROR(TavoloCibo[[#This Row],[COSTO PER PORZIONE]]*TavoloCibo[[#This Row],[PORZIONE PER BAMBINO]],\"\")","v":{"v":0,"d":"€ 0.00"}},{"$f":"IFERROR(TavoloCibo[[#This Row],[COSTO PER PORZIONE]]*TavoloCibo[[#This Row],[PORZIONE PER ADULTO]],\"\")","v":{"v":0.8461538461538461,"d":"€ 0.85"}},"Pomodoro e basilico "]
[null,"Salmone affumicato",{"v":50,"d":"€ 50.00"},1,2,{"$f":"(TavoloCibo[[#This Row],[PORZIONE PER BAMBINO]]*TotaleBambini)+(TavoloCibo[[#This Row],[PORZIONE PER ADULTO]]*TotaleAdulti)","v":72},{"$f":"IFERROR(TavoloCibo[[#This Row],[COSTO TOTALE]]/TavoloCibo[[#This Row],[TOTALE PORZIONI]],\"\")","v":{"v":0.6944444444444444,"d":"€ 0.69"}},{"$f":"IFERROR(TavoloCibo[[#This Row],[COSTO PER PORZIONE]]*TavoloCibo[[#This Row],[PORZIONE PER BAMBINO]],\"\")","v":{"v":0.6944444444444444,"d":"€ 0.69"}},{"$f":"IFERROR(TavoloCibo[[#This Row],[COSTO PER PORZIONE]]*TavoloCibo[[#This Row],[PORZIONE PER ADULTO]],\"\")","v":{"v":1.3888888888888888,"d":"€ 1.39"}}]
[null,"Tartine",{"v":20,"d":"€ 20.00"},1,2,{"$f":"(TavoloCibo[[#This Row],[PORZIONE PER BAMBINO]]*TotaleBambini)+(TavoloCibo[[#This Row],[PORZIONE PER ADULTO]]*TotaleAdulti)","v":72},{"$f":"IFERROR(TavoloCibo[[#This Row],[COSTO TOTALE]]/TavoloCibo[[#This Row],[TOTALE PORZIONI]],\"\")","v":{"v":0.2777777777777778,"d":"€ 0.28"}},{"$f":"IFERROR(TavoloCibo[[#This Row],[COSTO PER PORZIONE]]*TavoloCibo[[#This Row],[PORZIONE PER BAMBINO]],\"\")","v":{"v":0.2777777777777778,"d":"€ 0.28"}},{"$f":"IFERROR(TavoloCibo[[#This Row],[COSTO PER PORZIONE]]*TavoloCibo[[#This Row],[PORZIONE PER ADULTO]],\"\")","v":{"v":0.5555555555555556,"d":"€ 0.56"}},"4 sacchetti - assortiti"]
[null,"Crema di formaggio",{"v":10,"d":"€ 10.00"},1,2,{"$f":"(TavoloCibo[[#This Row],[PORZIONE PER BAMBINO]]*TotaleBambini)+(TavoloCibo[[#This Row],[PORZIONE PER ADULTO]]*TotaleAdulti)","v":72},{"$f":"IFERROR(TavoloCibo[[#This Row],[COSTO TOTALE]]/TavoloCibo[[#This Row],[TOTALE PORZIONI]],\"\")","v":{"v":0.1388888888888889,"d":"€ 0.14"}},{"$f":"IFERROR(TavoloCibo[[#This Row],[COSTO PER PORZIONE]]*TavoloCibo[[#This Row],[PORZIONE PER BAMBINO]],\"\")","v":{"v":0.1388888888888889,"d":"€ 0.14"}},{"$f":"IFERROR(TavoloCibo[[#This Row],[COSTO PER PORZIONE]]*TavoloCibo[[#This Row],[PORZIONE PER ADULTO]],\"\")","v":{"v":0.2777777777777778,"d":"€ 0.28"}},"2 vaschette grandi"]
[null,"Capperi",{"v":12,"d":"€ 12.00"},1,2,{"$f":"(TavoloCibo[[#This Row],[PORZIONE PER BAMBINO]]*TotaleBambini)+(TavoloCibo[[#This Row],[PORZIONE PER ADULTO]]*TotaleAdulti)","v":72},{"$f":"IFERROR(TavoloCibo[[#This Row],[COSTO TOTALE]]/TavoloCibo[[#This Row],[TOTALE PORZIONI]],\"\")","v":{"v":0.16666666666666666,"d":"€ 0.17"}},{"$f":"IFERROR(TavoloCibo[[#This Row],[COSTO PER PORZIONE]]*TavoloCibo[[#This Row],[PORZIONE PER BAMBINO]],\"\")","v":{"v":0.16666666666666666,"d":"€ 0.17"}},{"$f":"IFERROR(TavoloCibo[[#This Row],[COSTO PER PORZIONE]]*TavoloCibo[[#This Row],[PORZIONE PER ADULTO]],\"\")","v":{"v":0.3333333333333333,"d":"€ 0.33"}},"3 vasetti"]
[null,"Ali di pollo",{"v":45,"d":"€ 45.00"},2,4,{"$f":"(TavoloCibo[[#This Row],[PORZIONE PER BAMBINO]]*TotaleBambini)+(TavoloCibo[[#This Row],[PORZIONE PER ADULTO]]*TotaleAdulti)","v":144},{"$f":"IFERROR(TavoloCibo[[#This Row],[COSTO TOTALE]]/TavoloCibo[[#This Row],[TOTALE PORZIONI]],\"\")","v":{"v":0.3125,"d":"€ 0.31"}},{"$f":"IFERROR(TavoloCibo[[#This Row],[COSTO PER PORZIONE]]*TavoloCibo[[#This Row],[PORZIONE PER BAMBINO]],\"\")","v":{"v":0.625,"d":"€ 0.63"}},{"$f":"IFERROR(TavoloCibo[[#This Row],[COSTO PER PORZIONE]]*TavoloCibo[[#This Row],[PORZIONE PER ADULTO]],\"\")","v":{"v":1.25,"d":"€ 1.25"}},"Acquistare dal negozio locale"]
[null,"Zuppa di ceci",{"v":10,"d":"€ 10.00"},4,6,{"$f":"(TavoloCibo[[#This Row],[PORZIONE PER BAMBINO]]*TotaleBambini)+(TavoloCibo[[#This Row],[PORZIONE PER ADULTO]]*TotaleAdulti)","v":236},{"$f":"IFERROR(TavoloCibo[[#This Row],[COSTO TOTALE]]/TavoloCibo[[#This Row],[TOTALE PORZIONI]],\"\")","v":{"v":0.0423728813559322,"d":"€ 0.04"}},{"$f":"IFERROR(TavoloCibo[[#This Row],[COSTO PER PORZIONE]]*TavoloCibo[[#This Row],[PORZIONE PER BAMBINO]],\"\")","v":{"v":0.1694915254237288,"d":"€ 0.17"}},{"$f":"IFERROR(TavoloCibo[[#This Row],[COSTO PER PORZIONE]]*TavoloCibo[[#This Row],[PORZIONE PER ADULTO]],\"\")","v":{"v":0.2542372881355932,"d":"€ 0.25"}},"Preparare la sera prima"]
[null,"Patatine al formaggio",{"v":14,"d":"€ 14.00"},4,6,{"$f":"(TavoloCibo[[#This Row],[PORZIONE PER BAMBINO]]*TotaleBambini)+(TavoloCibo[[#This Row],[PORZIONE PER ADULTO]]*TotaleAdulti)","v":236},{"$f":"IFERROR(TavoloCibo[[#This Row],[COSTO TOTALE]]/TavoloCibo[[#This Row],[TOTALE PORZIONI]],\"\")","v":{"v":0.059322033898305086,"d":"€ 0.06"}},{"$f":"IFERROR(TavoloCibo[[#This Row],[COSTO PER PORZIONE]]*TavoloCibo[[#This Row],[PORZIONE PER BAMBINO]],\"\")","v":{"v":0.23728813559322035,"d":"€ 0.24"}},{"$f":"IFERROR(TavoloCibo[[#This Row],[COSTO PER PORZIONE]]*TavoloCibo[[#This Row],[PORZIONE PER ADULTO]],\"\")","v":{"v":0.3559322033898305,"d":"€ 0.36"}},"Preparare la sera prima"]
[null,"Verdure assortite",{"v":30,"d":"€ 30.00"},4,10,{"$f":"(TavoloCibo[[#This Row],[PORZIONE PER BAMBINO]]*TotaleBambini)+(TavoloCibo[[#This Row],[PORZIONE PER ADULTO]]*TotaleAdulti)","v":340},{"$f":"IFERROR(TavoloCibo[[#This Row],[COSTO TOTALE]]/TavoloCibo[[#This Row],[TOTALE PORZIONI]],\"\")","v":{"v":0.08823529411764706,"d":"€ 0.09"}},{"$f":"IFERROR(TavoloCibo[[#This Row],[COSTO PER PORZIONE]]*TavoloCibo[[#This Row],[PORZIONE PER BAMBINO]],\"\")","v":{"v":0.35294117647058826,"d":"€ 0.35"}},{"$f":"IFERROR(TavoloCibo[[#This Row],[COSTO PER PORZIONE]]*TavoloCibo[[#This Row],[PORZIONE PER ADULTO]],\"\")","v":{"v":0.8823529411764707,"d":"€ 0.88"}},"Bastoncini di carote, sedano, broccoletti, cavolfiore, peperoni rossi e verdi"]
[null,"Palline di formaggio",{"v":15,"d":"€ 15.00"},5,10,{"$f":"(TavoloCibo[[#This Row],[PORZIONE PER BAMBINO]]*TotaleBambini)+(TavoloCibo[[#This Row],[PORZIONE PER ADULTO]]*TotaleAdulti)","v":360},{"$f":"IFERROR(TavoloCibo[[#This Row],[COSTO TOTALE]]/TavoloCibo[[#This Row],[TOTALE PORZIONI]],\"\")","v":{"v":0.041666666666666664,"d":"€ 0.04"}},{"$f":"IFERROR(TavoloCibo[[#This Row],[COSTO PER PORZIONE]]*TavoloCibo[[#This Row],[PORZIONE PER BAMBINO]],\"\")","v":{"v":0.20833333333333331,"d":"€ 0.21"}},{"$f":"IFERROR(TavoloCibo[[#This Row],[COSTO PER PORZIONE]]*TavoloCibo[[#This Row],[PORZIONE PER ADULTO]],\"\")","v":{"v":0.41666666666666663,"d":"€ 0.42"}},"Assortimento: crema di formaggio, formaggio piccante con noci"]
[null,"Cracker",{"v":25,"d":"€ 25.00"},5,10,{"$f":"(TavoloCibo[[#This Row],[PORZIONE PER BAMBINO]]*TotaleBambini)+(TavoloCibo[[#This Row],[PORZIONE PER ADULTO]]*TotaleAdulti)","v":360},{"$f":"IFERROR(TavoloCibo[[#This Row],[COSTO TOTALE]]/TavoloCibo[[#This Row],[TOTALE PORZIONI]],\"\")","v":{"v":0.06944444444444445,"d":"€ 0.07"}},{"$f":"IFERROR(TavoloCibo[[#This Row],[COSTO PER PORZIONE]]*TavoloCibo[[#This Row],[PORZIONE PER BAMBINO]],\"\")","v":{"v":0.3472222222222222,"d":"€ 0.35"}},{"$f":"IFERROR(TavoloCibo[[#This Row],[COSTO PER PORZIONE]]*TavoloCibo[[#This Row],[PORZIONE PER ADULTO]],\"\")","v":{"v":0.6944444444444444,"d":"€ 0.69"}},"Assortiti"]
[null,"Totale",{"$f":"SUBTOTAL(109,TavoloCibo[COSTO TOTALE])","v":{"v":475,"d":"€ 475.00"}},{"$f":"SUBTOTAL(109,TavoloCibo[PORZIONE PER BAMBINO])","v":34.5},{"$f":"SUBTOTAL(109,TavoloCibo[PORZIONE PER ADULTO])","v":65.5},{"$f":"SUBTOTAL(109,TavoloCibo[TOTALE PORZIONI])","v":2393},{"$f":"SUBTOTAL(109,TavoloCibo[COSTO PER PORZIONE])","v":{"v":6.915706603622084,"d":"€ 6.92"}},{"$f":"SUBTOTAL(109,TavoloCibo[COSTO PER BAMBINO])","v":{"v":7.252884190656953,"d":"€ 7.25"}},{"$f":"SUBTOTAL(109,TavoloCibo[COSTO PER ADULTO])","v":{"v":12.690089084110037,"d":"€ 12.69"}}]

{"sheet":"Altri Elementi Essenziali","index":3,"n_rows":30,"n_cols":5,"rows_kept":30,"merged":[[14,1,14,4],[22,1,22,4]]}
[]
[]
[null,"Altri elementi essenziali"]
[]
[]
[null,"Arredi e forniture","Costo","Acquistato","Nota"]
[null,"Affitto salone",{"v":250,"d":"€ 250.00"},"Sì"]
[null,"Tovaglie",{"v":30,"d":"€ 30.00"},"Sì","Affitto"]
[null,"Tavoli e sedie",{"v":0,"d":"€ 0.00"},null,"Incluso nell'affitto del salone"]
[null,"Tovaglioli per bevande",{"v":25,"d":"€ 25.00"}]
[null,"Tovaglioli per cena",{"v":20,"d":"€ 20.00"},null,"Affitto"]
[null,"Servizio da tavola",{"v":50,"d":"€ 50.00"},null,"Affitto"]
[null,"Bicchieri",{"v":25,"d":"€ 25.00"},null,"Affitto"]
[null,"Totale",{"$f":"SUBTOTAL(109,BudgetTavolo1[Costo])","v":{"v":400,"d":"€ 400.00"}}]
[]
[]
[null,"Decorazioni","Costo","Acquistato","Nota"]
[null,"Palloncini",{"v":25,"d":"€ 25.00"}]
[null,"Bombola di elio",{"v":50,"d":"€ 50.00"},null,"Affitto"]
[null,"Centro tavola",{"v":100,"d":"€ 100.00"},"Sì","10 totale"]
[null,"Vasi di vetro",{"v":0,"d":"€ 0.00"},null,"In prestito da Sandra"]
[null,"Totale",{"$f":"SUBTOTAL(109,BudgetTavolo2[Costo])","v":{"v":175,"d":"€ 175.00"}}]
[]
[]
[null,"Altro","Costo","Acquistato","Nota"]
[null,"Inviti",{"v":50,"d":"€ 50.00"},"Sì"]
[null,"Affrancatura",{"v":60,"d":"€ 60.00"},"Sì"]
[null,"Fotografo",{"v":125,"d":"€ 125.00"},null,"2 ore (14.00 - 16.00)"]
[null,"Regalini per il party",{"v":50,"d":"€ 50.00"}]
[null,"Totale",{"$f":"SUBTOTAL(109,BudgetTavolo3[Costo])","v":{"v":285,"d":"€ 285.00"}}]

{"sheet":"Griglia dispos. posti a sedere","index":4,"n_rows":43,"n_cols":34,"rows_kept":43,"merged":[[35,0,35,17],[35,19,35,33]]}
["Disposizione posti a sedere"]
{"$rows_empty":33}
[{"$nulls":33},"*1 quadratino = circa 0,01 metri quadrati"]
["Nota",{"$nulls":18},{"$f":"\" Totale ospiti confermati: \"&OspitiConfermati","v":" Totale ospiti confermati: 46"}]
[{"$nulls":19},"È possibile utilizzare uno qualsiasi dei seguenti allestimenti dei tavoli:"]
[{"$nulls":20},{"$f":"ROUNDUP(OspitiConfermati/6,0)&\" tavoli rotondi 1 metro (6 posti)\"","v":"8 tavoli rotondi 1 metro (6 posti)"}]
[{"$nulls":20},{"$f":"ROUNDUP(OspitiConfermati/8,0) &\" tavoli rotondi 1,5 metri (8 posti)\"","v":"6 tavoli rotondi 1,5 metri (8 posti)"}]
[{"$nulls":20},{"$f":"ROUNDUP(OspitiConfermati/10,0)&\" tavoli rotondi 2 metri (10 posti)\"","v":"5 tavoli rotondi 2 metri (10 posti)"}]
[{"$nulls":20},{"$f":"ROUNDUP(OspitiConfermati/6,0)& \" tavoli rettangolari 70 cm x 2 metri (6 posti)\"","v":"8 tavoli rettangolari 70 cm x 2 metri (6 posti)"}]
[{"$nulls":20},{"$f":"ROUNDUP(OspitiConfermati/8,0)&\" tavoli rettangolari 70 cm x 2,5 metri (8 posti)\"","v":"6 tavoli rettangolari 70 cm x 2,5 metri (8 posti)"}]
[{"$nulls":19},"(Spazio ottimale tra i tavoli: 1 metro circa)"]